bitfinex/quotes_ETHUSD_20240827
["timestamp","ask_amount","ask_price","bid_price","bid_amount"]
[1724767447140,9.88497518,2611.3,2611.2,0.0254003]
[1724767447289,13.71448518,2611.3,2611.2,0.0254003]
[1724767447919,13.71448518,2611.3,2610.0,0.53]
[1724767447920,3.83076,2610.5,2610.0,0.53]
[1724767448240,3.74025694,2608.7,2608.6,0.1254003]
[1724767448439,3.83269,2609.2,2608.6,0.1254003]
[1724767448646,3.83328,2608.8,2608.6,0.1254003]
[1724767448791,0.06332871,2608.7,2608.6,0.1254003]
[1724767449012,10.09436871,2608.7,2608.6,0.1254003]
[1724767449217,10.09436871,2608.7,2608.3,0.42895287]
[1724767449218,10.03192,2608.4,2608.3,0.42895287]
[1724767449518,10.65999,2608.4,2608.3,0.42895287]
[1724767449735,18.87751,2608.4,2608.3,0.42895287]
[1724767451016,5.29559,2608.4,2608.3,0.42895287]
[1724767451325,5.35891871,2608.4,2608.3,0.42895287]
[1724767451524,8.35891871,2608.4,2608.3,0.42895287]
[1724767451915,5.35891871,2608.4,2608.3,0.42895287]
[1724767452156,0.06332871,2608.4,2608.3,0.42895287]
[1724767452310,0.06332871,2608.5,2608.3,0.42895287]
[1724767452516,3.06332871,2608.5,2608.3,0.42895287]
[1724767453111,0.06332871,2608.5,2608.3,0.42895287]
[1724767453553,0.06332871,2608.9,2608.3,0.42895287]
[1724767453724,0.06332871,2609.3,2608.3,0.42895287]
[1724767453925,3.89601871,2609.2,2608.3,0.42895287]
[1724767454357,5.45517481,2608.7,2608.3,0.42895287]
[1724767454520,0.06332871,2608.6,2608.3,0.42895287]
[1724767455337,3.83375,2608.5,2608.3,0.42895287]
[1724767455524,0.06332871,2608.4,2608.3,0.42895287]
[1724767456455,0.06332871,2608.6,2608.3,0.42895287]
[1724767456639,3.89681871,2608.6,2608.3,0.42895287]
[1724767456826,0.06332871,2608.6,2608.3,0.42895287]
[1724767459127,3.89687871,2608.6,2608.3,0.42895287]
[1724767459327,3.83363,2608.5,2608.3,0.42895287]
[1724767459529,0.06332871,2608.4,2608.3,0.42895287]
[1724767460774,0.06332871,2608.6,2608.3,0.42895287]
[1724767461738,3.89680871,2608.6,2608.3,0.42895287]
[1724767462274,3.83376,2608.4,2608.3,0.42895287]
[1724767462472,0.06332871,2608.4,2608.3,0.42895287]
[1724767465107,0.06332871,2608.6,2608.3,0.42895287]
[1724767465946,3.89690871,2608.6,2608.3,0.42895287]
[1724767466146,3.83362,2608.5,2608.3,0.42895287]
[1724767466371,0.06332871,2608.4,2608.3,0.42895287]
[1724767467372,3.89708871,2608.4,2608.3,0.42895287]
[1724767468288,0.06332871,2608.4,2608.3,0.42895287]
[1724767469602,0.06332871,2608.6,2608.3,0.42895287]
[1724767469753,3.06332871,2608.6,2608.3,0.42895287]
[1724767470202,0.55,2608.5,2608.3,0.42895287]
[1724767470497,0.06332871,2608.4,2608.3,0.42895287]
[1724767471191,3.83129,2610.1,2608.3,0.71193816]
[1724767471192,0.06332871,2609.0,2608.3,0.71193816]
[1724767471508,0.06332871,2609.4,2608.4,2.40726835]
[1724767471721,0.06332871,2609.8,2608.4,3.0]
[1724767471867,0.06332871,2610.2,2608.6,2.3306]
[1724767472201,0.06332871,2610.2,2608.8,2.3306]
[1724767472420,0.06332871,2610.2,2609.0,2.3147]
[1724767472714,0.06332871,2610.2,2609.1,0.07664556]
[1724767472875,0.06332871,2610.6,2609.2,2.3147]
[1724767473076,0.06332871,2610.6,2609.3,0.23913456]
[1724767473604,0.06332871,2610.6,2609.4,2.3147]
[1724767473964,5.28691054,2610.4,2609.4,2.3147]
[1724767474177,0.06332871,2610.3,2609.4,2.3147]
[1724767474603,0.06332871,2610.7,2609.6,2.3118]
[1724767474815,0.06332871,2610.7,2609.2,5.28691054]
[1724767474816,0.06332871,2610.7,2609.7,2.62726457]
[1724767474964,0.06332871,2611.0,2609.9,2.3118]
[1724767475166,0.06332871,2611.0,2610.1,2.3118]
[1724767475405,0.06332871,2611.0,2610.1,5.3118]
[1724767475614,0.06332871,2611.0,2610.1,2.3118]
[1724767476292,0.06332871,2611.0,2610.2,0.07661606]
[1724767476515,3.82861,2612.0,2610.3,2.4505]
[1724767476516,0.06332871,2611.3,2610.3,2.4505]
[1724767476825,0.06332871,2611.3,2610.4,0.07660757]
[1724767476994,0.06332871,2611.3,2610.3,5.4505]
[1724767477176,0.06332871,2611.3,2610.4,0.56893416]
[1724767477379,0.06332871,2611.5,2610.4,3.56893416]
[1724767477626,5.28691054,2611.3,2610.4,3.64554176]
[1724767477927,0.06332871,2611.5,2610.4,3.64554176]
[1724767477928,0.06332871,2611.2,2610.4,3.56893416]
[1724767478217,0.06332871,2611.5,2610.5,0.60960418]
[1724767478425,0.06332871,2611.5,2610.6,0.36096042]
[1724767479609,0.06332871,2611.5,2610.6,0.43756832]
[1724767479780,0.06332871,2611.9,2610.7,2.3184]
[1724767479979,0.06332871,2611.9,2610.8,0.57559683]
[1724767480288,0.06332871,2611.9,2610.8,0.0766002]
[1724767481231,0.06332871,2611.9,2610.9,2.3693]
[1724767481519,3.89140871,2612.3,2610.9,5.3693]
[1724767481719,0.06332871,2612.3,2611.1,7.3]
[1724767481921,0.06332871,2612.3,2611.3,2.2975]
[1724767482216,0.06332871,2612.3,2611.4,0.07657901]
[1724767482518,7.45,2612.9,2611.3,2.2975]
[1724767482519,9.27016027,2612.4,2611.3,2.2975]
[1724767482780,7.65651,2612.2,2611.3,2.2975]
[1724767482923,0.06332871,2612.1,2611.3,2.2975]
[1724767483127,5.44218027,2612.0,2611.3,2.2975]
[1724767483290,3.89205871,2611.9,2611.3,2.2975]
[1724767483489,3.89205871,2611.9,2610.8,2.3432]
[1724767483714,0.06332871,2611.9,2610.8,4.33529604]
[1724767484741,0.06332871,2611.9,2610.9,0.07659363]
[1724767484890,0.06332871,2612.1,2611.0,2.3195]
[1724767485091,3.82849,2612.0,2611.0,2.3195]
[1724767485291,3.82908,2611.6,2611.0,2.3195]
[1724767485519,0.06332871,2611.5,2610.7,7.3]
[1724767485833,0.06332871,2611.5,2610.8,0.76609604]
[1724767486046,0.06332871,2611.5,2610.7,7.3]
[1724767486539,3.82944,2611.4,2610.7,7.3]
[1724767486740,3.82944,2611.4,2610.2,2.347]
[1724767486741,3.8297,2611.2,2610.2,2.347]
[1724767486944,0.06332871,2611.1,2610.2,2.347]
[1724767487750,0.06332871,2611.1,2609.8,2.4344]
[1724767487751,5.44218027,2610.9,2609.8,2.4344]
[1724767487949,0.06332871,2610.8,2609.9,0.24344]
[1724767488443,0.06332871,2610.8,2609.9,0.32006669]
[1724767488606,0.06332871,2610.8,2609.9,0.24344]
[1724767488806,0.06332871,2611.0,2609.9,0.24344]
[1724767489045,0.06332871,2611.0,2609.9,3.24344]
[1724767489253,0.06332871,2611.0,2610.0,0.567784]
[1724767490749,0.06332871,2611.0,2609.9,3.24344]
[1724767490750,5.44218027,2610.9,2609.9,3.24344]
[1724767490933,6.82977,2611.2,2609.9,3.24344]
[1724767490934,0.06332871,2610.8,2609.9,3.24344]
[1724767492560,0.06332871,2611.0,2609.9,3.24344]
[1724767492706,0.06332871,2611.0,2610.0,0.567784]
[1724767494433,0.06332871,2611.0,2610.1,0.07661908]
[1724767494652,0.06332871,2611.1,2610.2,2.29]
[1724767494851,0.06332871,2611.1,2610.3,0.31326974]
[1724767495034,0.06332871,2611.6,2610.3,3.31326974]
[1724767495239,3.82937,2611.4,2610.3,3.23666191]
[1724767495568,0.06332871,2611.3,2610.3,3.23666191]
[1724767495771,0.06332871,2611.3,2610.4,0.55266619]
[1724767496122,2.49092871,2611.2,2610.3,3.0]
[1724767496326,2.49092871,2611.2,2610.2,2.29]
[1724767496527,3.83011,2610.9,2609.3,3.0]
[1724767496759,3.82997,2611.0,2609.4,2.66186505]
[1724767496760,0.06332871,2610.8,2609.4,2.66186505]
[1724767496937,0.06332871,2610.8,2609.5,3.28321526]
[1724767497134,0.06332871,2610.8,2609.6,2.497]
[1724767497565,0.06332871,2610.8,2609.6,2.3564]
[1724767497725,0.06332871,2611.1,2609.6,2.3564]
[1724767497927,5.44218027,2610.4,2609.2,0.50275054]
[1724767498169,5.44218027,2610.4,2609.1,2.75628025]
[1724767498170,3.8312,2610.2,2609.1,2.3564]
[1724767498336,0.06332871,2610.1,2609.2,0.96564]
[1724767498538,0.06332871,2610.1,2609.1,2.3564]
[1724767498776,0.06332871,2610.1,2609.1,2.75619014]
[1724767498929,3.89461871,2610.1,2609.1,2.3564]
[1724767499135,0.06332871,2610.1,2609.2,0.23564]
[1724767499329,5.28907286,2610.0,2609.2,0.23564]
[1724767499529,0.06332871,2609.9,2609.2,0.23564]
[1724767500231,0.06332871,2609.9,2609.2,3.23564]
[1724767500431,0.06332871,2609.9,2609.3,0.63585418]
[1724767500683,0.55,2611.1,2609.3,0.63585418]
[1724767500684,0.06332871,2610.5,2609.4,2.4676]
[1724767500845,11.45060286,2611.2,2609.6,2.401]
[1724767500846,9.11922286,2610.9,2609.6,2.401]
[1724767501174,5.28907286,2610.6,2609.6,2.401]
[1724767501473,0.06332871,2610.5,2609.6,2.401]
[1724767501683,0.06332871,2610.5,2609.7,0.57113454]
[1724767501984,0.06332871,2610.5,2609.7,3.57113454]
[1724767502186,5.28907286,2610.9,2609.9,2.382]
[1724767502187,0.06332871,2610.8,2609.9,2.382]
[1724767502393,0.06332871,2610.8,2610.0,0.2458627]
[1724767502544,0.06332871,2610.8,2610.0,3.2458627]
[1724767503051,3.82981,2611.1,2610.0,3.2458627]
[1724767503052,0.06332871,2611.0,2610.1,0.07662077]
[1724767503384,2.4031,2612.1,2610.2,2.3552]
[1724767503588,0.06332871,2612.0,2610.4,2.4846]
[1724767503744,0.06332871,2612.0,2610.7,0.3839]
[1724767503939,0.06332871,2612.0,2610.4,3.0]
[1724767503940,2.3995,2613.4,2611.2,3.82955]
[1724767504246,0.06332871,2613.3,2611.3,4.73145614]
[1724767504454,0.06332871,2613.3,2611.5,2.4846]
[1724767504792,5.50759775,2613.2,2611.5,2.4185]
[1724767505087,5.50759775,2613.2,2611.7,2.4185]
[1724767505305,3.82699,2613.1,2611.7,5.4185]
[1724767505474,0.06332871,2613.0,2611.7,5.4185]
[1724767505643,0.06332871,2613.0,2611.8,0.54185]
[1724767505839,0.06332871,2613.0,2611.8,3.0]
[1724767506046,0.06332871,2613.0,2611.9,0.07655791]
[1724767506486,0.06332871,2613.0,2611.4,3.0]
[1724767506487,0.06332871,2613.0,2612.0,2.4636]
[1724767506651,0.06332871,2613.0,2612.1,0.07655469]
[1724767506863,0.06332871,2613.0,2612.1,0.25401547]
[1724767507221,0.06332871,2613.0,2612.1,3.0]
[1724767507478,9.27109904,2613.2,2612.0,2.4636]
[1724767507687,3.89019871,2613.1,2612.0,2.4636]
[1724767508481,3.82721,2612.9,2612.0,2.4636]
[1724767508650,5.50759775,2612.8,2611.5,2.2879]
[1724767508982,0.06332871,2612.7,2611.5,2.80493]
[1724767509190,3.89088871,2612.7,2611.5,9.5879]
[1724767509501,0.06332871,2612.7,2611.6,0.07657589]
[1724767509992,0.06332871,2612.7,2611.7,2.3481]
[1724767510297,3.82767,2612.6,2611.7,2.3481]
[1724767510448,0.06332871,2612.5,2611.7,2.3481]
[1724767510643,5.50759775,2612.5,2611.7,2.3481]
[1724767512381,0.06332871,2612.5,2611.7,2.3481]
[1724767512588,3.06332871,2612.7,2611.7,2.95186444]
[1724767513013,0.06332871,2612.7,2611.7,2.95186444]
[1724767513468,0.06332871,2612.7,2611.8,0.07657219]
[1724767513815,0.06332871,2612.7,2611.7,2.95186444]
[1724767514127,0.06332871,2612.7,2611.8,0.37174696]
[1724767514617,0.06332871,2612.9,2611.8,0.37174696]
[1724767514815,5.50759775,2612.9,2611.7,2.3481]
[1724767514970,3.82734,2612.8,2611.7,2.3481]
[1724767515170,0.06332871,2612.7,2611.7,2.3481]
[1724767515476,0.06332871,2612.7,2611.8,0.54246699]
[1724767515901,0.06332871,2612.7,2611.7,2.3481]
[1724767516102,5.44426904,2612.5,2611.7,2.3481]
[1724767516310,5.44426904,2612.5,2611.6,3.0]
[1724767516311,3.82806,2612.3,2611.5,7.3]
[1724767516471,0.06332871,2612.4,2611.5,7.3]
[1724767516472,0.06332871,2612.2,2611.5,7.3]
[1724767517015,0.06332871,2612.2,2611.5,8.26122]
[1724767517390,3.06332871,2612.7,2611.5,8.26122]
[1724767517692,3.06332871,2612.7,2611.6,2.3772]
[1724767518104,0.06332871,2612.7,2611.6,2.45377017]
[1724767518309,0.06332871,2612.7,2611.7,1.07149902]
[1724767518483,0.06332871,2612.7,2611.8,2.3772]
[1724767518925,5.44426904,2612.5,2611.8,2.3772]
[1724767519083,0.06332871,2612.4,2611.8,2.3772]
[1724767520102,0.06332871,2612.7,2611.8,2.3772]
[1724767520528,3.89078871,2612.7,2611.8,2.91492]
[1724767520752,3.82763,2612.6,2611.8,2.91492]
[1724767520959,0.06332871,2612.5,2611.8,2.3772]
[1724767521330,5.50759775,2612.5,2611.8,2.3772]
[1724767521623,3.82799,2612.4,2611.5,7.3]
[1724767521954,3.82834,2612.1,2611.5,7.3]
[1724767522161,0.06332871,2612.0,2611.0,9.6309]
[1724767522315,6.89186871,2612.0,2611.0,9.6309]
[1724767522514,3.82894,2611.7,2611.0,9.6309]
[1724767522825,0.06332871,2611.6,2611.0,9.6309]
[1724767523032,0.06332871,2611.6,2611.1,0.96309]
[1724767523776,0.06332871,2611.8,2611.1,0.96309]
[1724767524361,0.06332871,2611.8,2611.1,1.03968243]
[1724767524659,0.06332871,2611.8,2611.1,0.96309]
[1724767525957,5.28086869,2611.6,2611.0,9.6309]
[1724767526154,0.06332871,2611.5,2611.0,9.6309]
[1724767527231,0.06332871,2611.5,2611.0,2.3309]
[1724767527427,0.06332871,2611.8,2611.0,2.3309]
[1724767527644,3.89218871,2611.8,2611.0,2.3309]
[1724767527848,9.10957869,2611.9,2610.6,2.4254]
[1724767527849,3.82966,2611.2,2610.6,2.4254]
[1724767528091,3.83054,2610.6,2610.0,2.4254]
[1724767528292,5.28086869,2610.2,2609.5,2.4254]
[1724767528600,0.06332871,2610.1,2609.5,2.64959]
[1724767528816,5.28086869,2609.9,2609.2,12.26]
[1724767528958,3.83225,2609.5,2609.0,2.4254]
[1724767529156,3.0,2610.3,2609.0,2.4254]
[1724767529157,0.06332871,2609.4,2609.0,2.4254]
[1724767530156,0.06332871,2609.5,2609.0,2.4254]
[1724767530395,0.06332871,2609.5,2609.0,2.66794]
[1724767530905,5.28086869,2609.3,2608.7,7.3]
[1724767531060,0.06332871,2609.2,2608.7,7.3]
[1724767533409,6.89550871,2609.5,2608.7,7.3]
[1724767533727,3.06332871,2609.5,2608.7,7.3]
[1724767533886,3.06332871,2609.5,2608.7,7.90797506]
[1724767535031,0.06332871,2609.5,2608.8,2.5763616]
[1724767535328,3.83179,2609.8,2608.8,2.4997]
[1724767535631,0.06332871,2609.7,2608.8,2.4997]
[1724767535836,0.06332871,2609.7,2608.9,1.04076751]
[1724767536289,0.06332871,2609.7,2609.0,0.0766537]
[1724767536490,0.06332871,2609.9,2609.0,0.0766537]
[1724767537139,0.06332871,2609.9,2608.9,4.04076751]
[1724767537430,0.06332871,2609.9,2609.0,0.65404675]
[1724767537636,0.06332871,2609.9,2609.0,0.73069425]
[1724767537787,0.06332871,2610.2,2609.0,0.73069425]
[1724767538202,0.06332871,2610.2,2609.1,7.3]
[1724767538203,3.83152,2610.0,2609.1,7.3]
[1724767538403,3.89491871,2609.9,2609.1,7.3]
[1724767538646,2.44612871,2609.9,2609.1,7.3]
[1724767538845,3.83172,2609.8,2609.1,7.3]
[1724767539045,0.06332871,2609.7,2609.1,8.49948143]
[1724767539801,0.06332871,2609.9,2609.2,0.07664536]
[1724767540000,2.2553,2610.3,2609.2,0.07664536]
[1724767540001,0.06332871,2610.1,2609.3,2.414]
[1724767540246,0.06332871,2610.1,2609.4,0.32570197]
[1724767540404,0.06332871,2610.3,2609.4,0.32570197]
[1724767540611,2.458,2610.7,2609.4,0.32570197]
[1724767540612,0.06332871,2610.7,2609.5,2.414]
[1724767540803,0.06332871,2611.0,2609.7,2.4534]
[1724767541131,0.06332871,2611.0,2609.8,1.11461413]
[1724767541517,0.06332871,2611.0,2609.8,4.03800143]
[1724767541704,9.28141126,2610.8,2609.8,4.03800143]
[1724767541908,0.06332871,2610.7,2609.8,4.03800143]
[1724767542126,0.06332871,2610.7,2609.9,0.64914014]
[1724767544489,3.82896,2611.7,2609.9,0.64914014]
[1724767544490,5.45115126,2610.8,2609.9,0.64914014]
[1724767544791,0.06332871,2610.7,2609.9,0.64914014]
[1724767545398,3.89381871,2610.7,2609.8,4.03800143]
[1724767545602,0.06332871,2610.7,2609.8,4.03800143]
[1724767546700,3.83075,2610.5,2609.8,4.03800143]
[1724767546876,3.89371871,2610.7,2609.8,4.03800143]
[1724767546877,0.06332871,2610.4,2609.8,4.03800143]
[1724767547262,0.06332871,2610.4,2609.9,0.64914014]
[1724767547875,0.06332871,2610.6,2609.9,0.64914014]
[1724767548063,0.06332871,2610.6,2609.6,7.3]
[1724767548269,3.83071,2610.5,2609.6,7.3]
[1724767548573,5.51447997,2610.4,2609.6,7.3]
[1724767548774,3.831,2610.3,2609.6,7.3]
[1724767548977,3.831,2610.3,2608.9,9.7669]
[1724767548978,3.83173,2609.8,2608.9,9.7669]
[1724767549170,0.06332871,2609.7,2608.9,9.7669]
[1724767550194,9.28319126,2609.6,2608.9,7.3]
[1724767550365,2.42052871,2609.5,2608.5,19.56]
[1724767550590,2.42052871,2609.5,2608.6,1.226]
[1724767550790,0.06332871,2609.5,2608.6,1.226]
[1724767552144,5.29133519,2609.2,2608.6,1.226]
[1724767552311,0.06332871,2609.1,2608.6,1.226]
[1724767552711,0.06332871,2609.1,2608.5,7.3]
[1724767553116,5.3546639,2609.2,2608.6,0.07667082]
[1724767553436,6.18902,2609.8,2608.6,0.07667082]
[1724767553437,5.29133519,2609.5,2608.6,0.07667082]
[1724767553740,5.29133519,2609.2,2608.4,3.0]
[1724767554035,0.06332871,2609.1,2608.4,3.56810529]
[1724767554238,5.29133519,2609.5,2608.5,0.62491582]
[1724767554409,0.06332871,2609.7,2608.6,2.56935108]
[1724767554611,5.3546639,2610.1,2608.7,3.31942669]
[1724767554805,5.3546639,2610.1,2608.9,2.4927]
[1724767555135,5.3546639,2610.1,2609.0,0.07664459]
[1724767555342,5.29133519,2609.8,2609.0,0.07664459]
[1724767555637,0.06332871,2610.1,2609.1,0.07663701]
[1724767555638,5.3546639,2610.1,2609.1,0.07663701]
[1724767556923,5.29133519,2609.8,2609.0,3.25693446]
[1724767557132,5.29133519,2609.2,2608.5,3.32436991]
[1724767557328,0.06332871,2609.1,2608.5,2.3]
[1724767557507,0.06332871,2609.1,2608.5,2.67533228]
[1724767558112,5.29133519,2608.9,2608.3,0.42895287]
[1724767558311,2.4714,2609.5,2608.3,0.42895287]
[1724767558312,0.06332871,2609.0,2608.3,0.42895287]
[1724767558550,5.29133519,2609.2,2608.4,0.07667092]
[1724767558551,0.06332871,2609.1,2608.4,0.07667092]
[1724767558766,0.06332871,2609.1,2608.4,0.3572333]
[1724767559257,8.29133519,2609.8,2608.6,2.3]
[1724767559415,0.06332871,2609.7,2608.7,7.37665076]
[1724767559626,0.06332871,2609.7,2608.8,0.07665408]
[1724767559815,0.06332871,2609.7,2608.8,0.96766541]
[1724767560014,0.06332871,2609.7,2608.9,0.07664707]
[1724767560424,5.29133519,2609.5,2609.0,2.3]
[1724767560757,0.06332871,2609.7,2608.7,7.3]
[1724767560758,5.29133519,2609.3,2608.7,9.6]
[1724767560916,0.06332871,2609.2,2608.7,10.33]
[1724767561122,0.06332871,2609.2,2608.7,3.03]
[1724767561361,0.06332871,2609.2,2608.7,2.3]
[1724767561519,5.29133519,2609.3,2608.7,2.3]
[1724767561873,0.06332871,2609.5,2608.8,0.07665782]
[1724767562244,0.06332871,2609.5,2608.7,2.3]
[1724767562461,5.29133519,2609.3,2608.7,2.3]
[1724767562770,0.06332871,2609.2,2608.7,2.3]
[1724767563760,5.29133519,2609.6,2608.8,0.07666042]
[1724767564066,5.29133519,2609.6,2608.8,0.31431394]
[1724767564271,0.06332871,2609.5,2608.8,0.23766604]
[1724767564497,0.06332871,2609.5,2608.7,2.3]
[1724767564498,5.29133519,2609.3,2608.7,2.3]
[1724767564774,0.06332871,2609.5,2608.5,3.0]
[1724767564775,5.29133519,2609.0,2608.5,3.0]
[1724767565075,5.29133519,2609.0,2608.3,0.42895287]
[1724767565076,0.06332871,2608.9,2608.3,0.42895287]
[1724767565287,5.29133519,2608.7,2608.3,0.42895287]
[1724767565617,0.06332871,2608.6,2608.3,0.42895287]
[1724767567055,5.29133519,2608.4,2608.3,0.42895287]
[1724767567251,5.3546639,2608.4,2608.3,0.42895287]
[1724767567639,5.3546639,2608.7,2608.3,0.42895287]
[1724767568040,5.29133519,2608.4,2608.3,0.42895287]
[1724767568242,5.3546639,2608.4,2608.3,0.42895287]
[1724767568449,5.29133519,2608.4,2608.3,0.42895287]
[1724767569559,5.3546639,2608.4,2608.3,0.42895287]
[1724767569798,7.7000639,2608.4,2608.3,0.42895287]
[1724767570691,11.5338239,2608.4,2608.3,0.42895287]
[1724767570873,7.7000639,2608.4,2608.3,0.42895287]
[1724767571075,11.5338239,2608.4,2608.3,0.42895287]
[1724767571589,14.5338239,2608.4,2608.3,0.42895287]
[1724767571791,10.7000639,2608.4,2608.3,0.42895287]
[1724767572109,11.5338239,2608.4,2608.3,0.42895287]
[1724767572290,18.9175839,2608.4,2608.3,0.42895287]
[1724767572607,10.7000639,2608.4,2608.3,0.42895287]
[1724767572762,14.5338239,2608.4,2608.3,0.42895287]
[1724767572965,10.7000639,2608.4,2608.3,0.42895287]
[1724767573306,5.3546639,2608.4,2608.3,0.42895287]
[1724767573509,5.29133519,2608.4,2608.3,0.42895287]
[1724767573691,7.6766639,2608.4,2608.3,0.42895287]
[1724767574007,11.5104239,2608.4,2608.3,0.42895287]
[1724767574209,18.3441839,2608.4,2608.3,0.42895287]
[1724767574440,2.4693,2607.8,2607.2,4.0160124]
[1724767574709,5.29133519,2607.4,2607.2,4.0160124]
[1724767574908,0.06332871,2607.3,2607.2,4.0160124]
[1724767577699,3.89870871,2607.3,2607.2,4.0160124]
[1724767577900,6.89850871,2607.3,2607.2,3.9660124]
[1724767578246,15.4752239,2607.3,2607.2,3.9660124]
[1724767578422,11.3544639,2607.3,2607.2,3.9660124]
[1724767579039,19.0252239,2607.3,2607.2,3.9660124]
[1724767580119,22.79727519,2607.3,2607.2,3.9660124]
[1724767580331,5.851,2607.3,2607.2,3.9660124]
[1724767580496,11.14233519,2607.3,2607.2,3.9660124]
[1724767580698,2.2861,2608.4,2607.2,3.9660124]
[1724767580893,5.29133519,2607.4,2607.2,3.9660124]
[1724767581814,5.29133519,2607.5,2607.2,3.9660124]
[1724767582247,5.29133519,2607.5,2607.2,4.36261364]
[1724767582544,0.06332871,2607.7,2607.2,4.36261364]
[1724767582842,0.06332871,2607.7,2607.3,2.4796]
[1724767583942,5.29133519,2608.3,2607.3,5.55630379]
[1724767584143,0.06332871,2608.2,2607.4,0.99189174]
[1724767584304,0.06332871,2608.2,2607.5,0.07669413]
[1724767587010,6.83311,2608.9,2607.6,2.3015]
[1724767587011,5.29133519,2608.6,2607.6,2.3015]
[1724767587214,0.06332871,2608.8,2607.8,2.3015]
[1724767587463,3.83224,2609.5,2608.0,2.3015]
[1724767587464,0.06332871,2609.3,2608.0,2.3015]
[1724767587672,5.29133519,2610.4,2608.0,2.3015]
[1724767587673,0.06332871,2609.8,2608.2,2.3015]
[1724767587951,0.06332871,2609.8,2608.4,2.3015]
[1724767588232,0.06332871,2609.8,2608.6,2.3015]
[1724767588396,0.45818339,2610.7,2608.6,2.3015]
[1724767588397,5.29133519,2610.6,2608.8,2.3015]
[1724767588537,0.06332871,2610.5,2609.0,2.3015]
[1724767588735,5.29133519,2610.3,2609.0,5.3015]
[1724767589043,5.29133519,2609.7,2609.0,2.3015]
[1724767589238,0.06332871,2609.6,2609.0,2.3015]
[1724767589659,5.29133519,2609.4,2608.3,2.4017]
[1724767589873,0.06332871,2609.3,2608.3,2.72548176]
[1724767590074,0.06332871,2609.3,2608.4,3.0]
[1724767590250,0.06332871,2609.3,2608.5,0.57254818]
[1724767590651,5.29133519,2609.1,2608.3,2.4017]
[1724767590851,5.29133519,2609.1,2607.3,0.3839]
[1724767590852,5.29133519,2608.8,2607.4,2.34827899]
[1724767591090,9.82673,2609.3,2607.5,2.5448179]
[1724767591091,5.29133519,2609.1,2607.5,2.5448179]
[1724767591291,5.29133519,2608.8,2607.5,2.5448179]
[1724767591448,5.29133519,2608.5,2607.5,2.5448179]
[1724767591657,0.06332871,2608.4,2607.5,2.5448179]
[1724767591991,0.06332871,2608.4,2607.6,0.25448179]
[1724767592163,0.06332871,2608.4,2607.5,2.2716]
[1724767592363,3.89709871,2608.4,2607.5,2.2716]
[1724767592890,3.83391,2608.3,2607.5,2.2716]
[1724767593205,5.51820597,2608.2,2607.2,3.9660124]
[1724767593376,5.51820597,2608.2,2607.2,4.59439364]
[1724767593776,0.06332871,2608.2,2607.2,4.59439364]
[1724767594291,3.83446,2608.0,2607.2,3.9660124]
[1724767594495,9.28956726,2607.8,2607.2,3.9660124]
[1724767594796,0.06332871,2607.7,2607.2,3.9660124]
[1724767595001,0.06332871,2608.1,2607.2,4.36261364]
[1724767595285,0.06332871,2608.1,2607.4,2.3842]
[1724767595995,5.45487726,2608.2,2607.4,2.3842]
[1724767596195,5.45487726,2608.2,2607.2,3.9660124]
[1724767596196,0.06332871,2608.1,2607.2,3.9660124]
[1724767596366,0.06332871,2608.1,2607.2,4.60862364]
[1724767597090,0.06332871,2608.1,2607.2,3.9660124]
[1724767597296,3.89763871,2608.1,2607.2,3.9660124]
[1724767597463,7.73195871,2608.1,2607.2,3.9660124]
[1724767597656,3.83436,2608.0,2607.2,3.9660124]
[1724767597996,3.89763871,2608.1,2607.2,3.9660124]
[1724767597997,0.06332871,2607.9,2607.2,3.9660124]
[1724767598614,3.89791871,2607.9,2607.2,3.9660124]
[1724767598752,0.06332871,2607.9,2607.2,3.9660124]
[1724767598951,7.73251871,2607.9,2607.2,3.9660124]
[1724767599192,3.83492,2607.7,2607.2,3.9660124]
[1724767599399,0.06332871,2607.6,2607.2,3.9660124]
[1724767599815,0.06332871,2607.6,2606.3,0.025]
[1724767599816,0.48401673,2608.8,2606.3,0.025]
[1724767600112,13.12827726,2606.4,2606.3,0.025]
[1724767600328,1.53523866,2606.7,2606.0,0.1254003]
[1724767600552,7.6743,2606.1,2606.0,0.1254003]
[1724767600715,7.6743,2606.1,2604.8,0.3683503]
[1724767600716,3.83801,2605.6,2604.8,0.3683503]
[1724767601026,5.45487726,2606.1,2604.8,0.3683503]
[1724767601027,5.45487726,2605.5,2604.8,0.3683503]
[1724767601236,5.45487726,2605.1,2603.7,0.0288]
[1724767601380,2.3457,2605.4,2603.7,0.0288]
[1724767601381,7.80057726,2603.8,2603.7,0.0288]
[1724767601577,7.88717726,2603.8,2603.7,0.0288]
[1724767602022,12.27771726,2603.8,2603.7,0.0288]
[1724767602223,10.09956,2603.5,2603.4,0.1254003]
[1724767602539,10.09956,2603.5,2602.0,0.00300723]
[1724767602540,3.84123,2603.4,2602.0,0.00300723]
[1724767602695,3.84186,2603.0,2602.0,0.00300723]
[1724767603148,5.45487726,2602.4,2602.0,0.00300723]
[1724767603485,5.45487726,2603.2,2602.0,0.00300723]
[1724767603741,0.55,2603.4,2602.0,0.32685766]
[1724767604053,3.83963,2604.5,2601.4,2.4362]
[1724767604054,3.0,2603.9,2602.1,0.37385043]
[1724767604207,2.2674,2604.1,2602.1,0.37385043]
[1724767604208,5.45487726,2603.8,2602.1,0.37385043]
[1724767604539,5.45487726,2603.2,2601.5,0.24362]
[1724767604744,6.1076,2604.1,2601.7,7.81417726]
[1724767604745,2.2674,2604.1,2601.7,7.81417726]
[1724767604895,2.2674,2604.1,2601.6,0.45410974]
[1724767604896,5.45487726,2604.7,2602.9,3.84185]
[1724767605218,3.83809,2605.5,2602.2,6.98574]
[1724767605219,6.09262,2605.4,2603.0,2.827085]
[1724767605421,5.45487726,2605.1,2603.0,2.827085]
[1724767605623,5.45487726,2605.1,2603.1,0.0768039]
[1724767605821,2.2544,2605.4,2603.1,3.0]
[1724767606020,2.2544,2605.4,2603.1,3.29038889]
[1724767606021,5.45487726,2605.1,2603.1,3.29038889]
[1724767606193,5.45487726,2605.1,2603.2,0.94982493]
[1724767606540,2.2544,2605.4,2603.3,0.62679508]
[1724767606743,5.45487726,2605.5,2603.4,2.3997]
[1724767606888,5.45487726,2605.1,2603.4,5.3997]
[1724767607095,5.45487726,2605.1,2603.5,0.58237214]
[1724767607408,5.45487726,2605.1,2603.6,0.0768087]
[1724767607606,5.45487726,2605.5,2603.6,0.0768087]
[1724767607809,3.83878,2605.0,2603.4,2.3997]